Cogmind - Beta 15 @@@ ROGUE MODE // 2025.09.28 @ 18:24:13 Player: led Result: Destroyed by G-34 Mercenary with Small Laser Performance ------------- Evolutions (1) 500 Regions Visited (2) 400 Robots Destroyed (16) 80 Value Destroyed (236) 236 Prototype IDs (0) 0 Alien Tech Used (0) 0 Bonus (0) 0 TOTAL SCORE: 1216 Bonus ------- None Cogmind --------- Core Integrity 0/400 Matter 228/300 Energy 91/100 System Corruption 1% Temperature Cool (6) Movement Core (50) Location -9/Materials Parts ------- > --- POWER (1) -------- (None) > --- PROPULSION (2) --- (None) > --- UTILITY (4) ------ Signal Interpreter ECM Suite > --- WEAPON (2) ------- (None) > --- INVENTORY (5) ---- High-capacity Battery (250) Large Matter Pod (0) Hardened Light Armor Plating Authchip [Device] Particle Cannon Peak State ------------ > --- POWER ------------ Light Ion Engine > --- PROPULSION ------- Improved Hover Unit Improved Hover Unit > --- UTILITY ---------- Small Storage Unit Signal Interpreter Hardened Light Armor Plating Hacking Suite > --- WEAPON ----------- Particle Cannon > --- INVENTORY -------- Ion Engine Improved Hover Unit High-capacity Battery Large Matter Pod Sensor Array ECM Suite Authchip [Device] Authchip [Device] [Rating: 15] Favorites ----------- Power Light Ion Engine Engine Light Ion Engine Propulsion Improved Hover Unit Wheel Wheel Hover Unit Improved Hover Unit Utility Small Storage Unit Device Sensor Array Storage Small Storage Unit Processor Signal Interpreter Hackware Hacking Suite Protection Hardened Light Armor Plating Weapon Particle Cannon Energy Gun Medium Laser Energy Cannon Particle Cannon Ballistic Gun Assault Rifle Launcher Rocket Launcher Special Weapon Mining Laser Build | -11 -10 -9 ------- Run | Yrd Mat Mat Slots Evolved 2 | . . 2 Power . | . . . Propulsion . | . . . Utility 2 | . . 2 Weapon . | . . . Parts Attached 23 | 9 6 8 Power 2 | 2 . . Engine 2 | 2 . . Core . | . . . Reactor . | . . . Propulsion 5 | 2 2 1 Treads . | . . . Leg . | . . . Wheel 2 | 2 . . Hover 3 | . 2 1 Flight . | . . . Utility 9 | 3 1 5 Device 4 | 2 . 2 Storage 2 | 1 . 1 Processor 1 | . . 1 Hackware 1 | . 1 . Protection 1 | . . 1 Artifact . | . . . Weapon 7 | 2 3 2 Energy Gun 1 | 1 . . Energy Cannon 2 | . 2 . Ballistic Gun 1 | 1 . . Ballistic Cannon . | . . . Launcher 2 | . 1 1 Special Weapon 1 | . . 1 Impact Weapon . | . . . Slashing Weapon . | . . . Piercing Weapon . | . . . Special Melee Weapon . | . . . Unidentified Prototypes . | . . . Parts Lost 4 | . . 4 Power 1 | . . 1 Propulsion 2 | . . 2 Utility 1 | . . 1 Weapon . | . . . Highest Loss Streak 4 | . . 4 To Critical Strikes . | . . . Average Backups 6 | 2 7 7 Power . | . 1 . Propulsion 1 | 1 2 1 Utility 3 | . 2 3 Weapon 1 | . 1 1 Tool/Special . | . . . Unused Backups 11 | 3 4 4 Power . | . . . Propulsion 8 | 3 4 1 Utility 3 | . . 3 Weapon . | . . . Tool/Special . | . . . Average Slot Usage (%) 83 | . 86 80 Engine 11 | . 14 10 Hover 22 | . 25 20 Device 8 | . 7 8 Storage 13 | . 14 12 Processor 6 | . . 10 Hackware 8 | . 6 10 Energy Cannon 6 | . 10 2 Special Weapon 2 | . . 4 Peak Build Rating 15 | 9 12 15 Average Rating 11 | 6 10 12 On Entrance 6 | . 7 12 Naked Turns . | . . . Heaviest Build 16 | 15 13 16 Greatest Support 20 | 20 20 14 Greatest Overweight (x) 4 | . 4 2 Average Overweight (x) . | . . . Largest Inventory Capacity 8 | 8 8 8 Average Capacity 7 | 7 8 7 Most Carried 8 | 5 8 8 Average Carried 6 | 2 7 7 Final Capacity 8 | 8 8 5 Final Carried 8 | 5 8 5 Class Distribution -------------------- 100% | Mutant Dominant Class ---------------- Mutant | -10/Materials Mutant | -9/Materials Resources | -11 -10 -9 ----------- Run | Yrd Mat Mat Matter Collected 585 | 243 50 292 Remotely . | . . . Salvage Created 322 | 95 60 167 Parts 24 | 10 6 8 Haulers Intercepted 1 | . . 1 Recyclers Shooed . | . . . Parts Field Recycled . | . . . Retrieved Matter . | . . . Parts Self-Destructed . | . . . Prevented . | . . . Kills | -11 -10 -9 ------- Run | Yrd Mat Mat Combat Hostiles Destroyed 6 | . 3 3 Cannons 2 | . . 2 AOE 4 | . 3 1 Classes Destroyed 7 | 1 4 2 Worker 2 | . 1 1 Tunneler 5 | 4 . 1 Hauler 1 | . . 1 Operator 1 | . 1 . Watcher 1 | . 1 . Swarmer 3 | . 3 . Grunt 3 | . . 3 Best Kill Streak 4 | 4 3 2 Combat Bots Only 3 | . 3 2 Max Kills in Single Turn 1 | 1 1 1 Gunslinging . | . . . Exploded 1 | . 1 1 Melee . | . . . Uniques/NPCs Destroyed . | . . . Combat | -11 -10 -9 -------- Run | Yrd Mat Mat Hostile Shots Fired 105 | . 5 100 Missed 47 | . 2 45 Hits 58 | . 3 55 Projectile 58 | . 3 55 Critical Strikes 2 | . 1 1 Damage Taken 808 | . 47 761 Core 427 | . 16 411 Absorbed by Shields . | . . . Core Remaining (%) 96 | 100 93 . Volleys Fired 71 | 8 22 41 Largest 2 | 2 2 1 Hottest 100 | 70 70 100 Shots Fired 80 | 16 23 41 Gun 18 | 16 2 . Cannon 38 | . 15 23 Launcher 10 | . 6 4 Special 14 | . . 14 Kinetic 9 | 8 1 . Thermal 61 | 8 16 37 Explosive 10 | . 6 4 Electromagnetic . | . . . Robot Hit Streak 5 | 5 3 4 Robot Miss Streak 3 | 1 3 3 Penetration Max . | . . . Secondary Targets . | . . . Shots Hit Robots 37 | 11 10 16 Core Hits 19 | 4 6 9 Critical Kills . | . . . Critical Parts Destroyed . | . . . Critical Strikes . | . . . Melee Attacks . | . . . Impact . | . . . Slashing . | . . . Piercing . | . . . Sneak Attacks . | . . . Combat Hostiles . | . . . Follow-up Attacks . | . . . Damage Inflicted 1027 | 135 371 521 Guns 150 | 135 15 . Cannons 429 | . 162 267 Explosions 418 | . 194 224 Melee . | . . . Ramming 6 | . . 6 Kinetic 74 | 59 15 . Thermal 529 | 76 162 291 Explosive 418 | . 194 224 Electromagnetic . | . . . Impact . | . . . Slashing . | . . . Piercing . | . . . Highest Corruption 1 | . . 1 Average Corruption 1 | . . 1 Corruption Purged . | . . . Corruption Blocked . | . . . Overload Shots . | . . . Overflow Damage 39 | . 39 . Projectiles 11 | . 11 . Explosions 28 | . 28 . Melee . | . . . Knockbacks . | . . . Impact . | . . . Kinetic . | . . . Secondary . | . . . Self-Inflicted Damage 50 | . 19 31 Shots 3 | . 1 2 Rammed 2 | . . 2 Targets Rammed 2 | . . 2 Kicked . | . . . Crushed . | . . . Highest Temperature 271 | 18 130 271 Average Temperature 43 | 9 32 54 Received Heat Transfer 348 | . . 348 Siege Activations . | . . . Martial Activations . | . . . Shielding Activations . | . . . Robots Disrupted . | . . . Combat Hostiles . | . . . Robots Corrupted . | . . . Combat Hostiles . | . . . Parts Fried . | . . . Impact Corruptions . | . . . Robots Melted . | . . . Combat Hostiles . | . . . Parts Melted 2 | 1 1 . Heat Transferred 1049 | 222 296 531 Parts Sabotaged . | . . . Parts Stolen . | . . . Parts Stripped . | . . . Power Chain Reactions . | . . . Alert | -11 -10 -9 ------- Run | Yrd Mat Mat Maximum Alert Level . | . . . Low Security (%) 100 | 100 100 100 Level 1 . | . . . Level 2 . | . . . Level 3 . | . . . Level 4 . | . . . Level 5 . | . . . High Security . | . . . Max Security . | . . . Peak Influence 115 | 10 79 115 Initial . | . . . Average 30 | 1 36 33 Influence Increases 436 | 20 203 213 Destroy 0b10 Robot/C 120 | . 60 60 Destroy 0b10 Robot/NC 50 | 20 15 15 Destroy Leader 24 | . 12 12 Successful Hack 26 | . 3 23 Disable Machine 30 | . 15 15 Destroy Structure 81 | . 38 43 Partial Spotted 15 | . 15 . Lose Combat Pursuer 90 | . 45 45 Influence Decreases 410 | 20 203 187 Time Decay 314 | 20 147 147 Lost Part 40 | . . 40 Purge Threat 56 | . 56 . Squads Dispatched 4 | . 2 2 Investigation 3 | . 1 2 Extermination . | . . . Reinforcement 1 | . 1 . Assault . | . . . Garrison . | . . . Intercept . | . . . Searches Triggered . | . . . Construction Impeded . | . . . Haulers Reinforced . | . . . Active Scanning Responses . | . . . Cargo Convoy Interrupts . | . . . Stealth | -11 -10 -9 --------- Run | Yrd Mat Mat Distress Signals 2 | . . 2 Communications Jammed . | . . . Distress Signals . | . . . Times Spotted 38 | . 11 27 Peak Tracking Total 12 | . 4 12 Tactical Retreats 5 | . 2 3 Traps | -11 -10 -9 ------- Run | Yrd Mat Mat Traps Triggered 1 | . . 1 Indirectly . | . . . Trap Hack Attempts . | . . . Triggered . | . . . Disarmed . | . . . Reprogrammed . | . . . Reused . | . . . Traps Extracted . | . . . Installed . | . . . Triggered . | . . . Machines | -11 -10 -9 ---------- Run | Yrd Mat Mat Machines Disabled 2 | . 1 1 Max in Single Turn 1 | . 1 1 Machines Repaired . | . . . Machines Dismantled . | . . . Machines Sabotaged . | . . . Overloaded Fab Kills . | . . . Hacking | -11 -10 -9 --------- Run | Yrd Mat Mat Machines Accessed 10 | . 4 6 Terminals 9 | . 4 5 Fabricators . | . . . Repair Stations . | . . . Recycling Units . | . . . Scanalyzers 1 | . . 1 Garrison Access . | . . . Total Hacks 43 | . 15 28 Successful 24 | . 8 16 Failed 19 | . 7 12 Catastrophic 4 | . 1 3 Database Lockouts . | . . . Manual 28 | . 9 19 Terminals 35 | . 15 20 Fabricators . | . . . Repair Stations . | . . . Recycling Units . | . . . Scanalyzers 8 | . . 8 Garrison Access . | . . . Terminal Hacks 8 | . 4 4 Branch Access Points 2 | . 1 1 Terminal Index 2 | . 1 1 Recycling Unit Index 1 | . . 1 Unreport Threat 1 | . 1 . Surveillance Status 1 | . . 1 Recall Reinforcements 1 | . 1 . Fabricator Hacks . | . . . Repair Station Hacks . | . . . Recycling Unit Hacks . | . . . Scanalyzer 8 | . . 8 Insert Component 4 | . . 4 Analyze 4 | . . 4 Garrison Access Hacks . | . . . Unauthorized Hacks 8 | . 4 4 Terminals 8 | . 4 4 Skim 8 | . 4 4 Fabricators . | . . . Repair Stations . | . . . Recycling Units . | . . . Scanalyzers . | . . . Garrison Access . | . . . Data Cores Recovered 1 | . 1 . Used . | . . . Hacking Detections 9 | . 4 5 Full Trace Events 2 | . 1 1 Feedback Events 1 | . . 1 Corruption 1 | . . 1 Feedback Blocked . | . . . Robot Schematics Acquired . | . . . Robots Built . | . . . Authchips . | . . . Time . | . . . Total Robot Build Rating . | . . . Part Schematics Acquired 4 | . . 4 Parts Built . | . . . Authchips . | . . . Time . | . . . Total Part Build Rating . | . . . Parts Repaired . | . . . Time . | . . . Parts Recycled . | . . . Recycled Matter . | . . . Retrieved Matter . | . . . Retrieved Components . | . . . Parts Scanalyzed 4 | . . 4 Part Schematics Acquired 4 | . . 4 Parts Damaged 1 | . . 1 Bothacking | -11 -10 -9 ------------ Run | Yrd Mat Mat Used RIF Installer . | . . . Robots Hacked . | . . . Non-combat . | . . . Combat . | . . . Robot Hacks Applied . | . . . Relay Couplers Released . | . . . Fabnet Peak Effective % . | . . . Robots Rewired . | . . . Allies Hacked . | . . . Hacks Repelled . | . . . Allies | -11 -10 -9 -------- Run | Yrd Mat Mat Total Allies . | . . . Largest Group . | . . . Highest-Rated Group . | . . . Highest-Rated Ally . | . . . Total Orders . | . . . Ally Attacks . | . . . Total Damage . | . . . Kills . | . . . Allies Corrupted . | . . . Allies Melted . | . . . Intel | -11 -10 -9 ------- Run | Yrd Mat Mat Active Infowar (turns) 681 | 52 201 428 Sensors 362 | . . 362 Terrain 23 | 23 . . Seismic 230 | 29 201 . ECM 66 | . . 66 Robot Analysis Total . | . . . Derelict Logs Recovered . | . . . Drone Launches . | . . . Drone Recoveries . | . . . Exploration | -11 -10 -9 ------------- Run | Yrd Mat Mat Turns Passed 1091 | 116 386 589 Spaces Moved 1193 | 77 481 635 Core 86 | 3 3 80 Treads . | . . . Legs . | . . . Wheels 94 | 74 20 . Hover 1013 | . 458 555 Flight . | . . . Fastest Speed 50 | 50 56 50 Average Speed 58 | 78 58 56 Slowest Speed 250 | 80 250 150 Overloaded Moves . | . . . Propulsion Burnouts . | . . . Robots Hopped . | . . . Potential Cave-ins . | . . . Cave-ins Triggered . | . . . Exploration Rate (%) 32 | 4 57 37 Regions Visited 2 Branch Regions . Pre-discovered Areas . | . . . Known Exits Taken . | . . . Unknown Exits Taken 2 | 1 1 . Scrap Searched . | . . . Spaces Dug 41 | . 21 20 Terrain Destroyed 92 | . 45 47 Melee . | . . . Projectile 12 | . . 12 AOE 80 | . 45 35 Terrain Rammed . | . . . Walls Destroyed . | . . . Machines Disabled . | . . . Actions | -11 -10 -9 --------- Run | Yrd Mat Mat Total 1473 | 113 565 795 Wait 117 | 9 19 89 Move 1191 | 76 480 635 Hop . | . . . Pick Up 24 | 8 10 6 Fast Attach 10 | 7 3 . Attach 8 | . 2 6 Detach 10 | . 6 4 Swap 17 | 2 9 6 Drop 20 | 3 11 6 Fire 71 | 8 22 41 Melee . | . . . Ram 2 | . . 2 Kick . | . . . Crush . | . . . Escape Stasis . | . . . Rewire 3 | . 3 . Trap . | . . . Miscellaneous . | . . . Route ------- -11/Scrapyard -10/Materials (discovered 2 exits: *Mat / Min) -9/Materials (discovered 3 exits: *Min x2 / *Sto) History --------- Turn | Location | Event 32 | -11/Scrapyard | Discovered new exit (range 14) 117 | -11/Scrapyard | Entered Materials 339 | -10/Materials | Build established: Mutant 457 | -10/Materials | Discovered new exit (range 16) 485 | -10/Materials | Identified exit to Mines 503 | -10/Materials | Entered another Materials area 503 | -9/Materials | Evolved 2 slots: Utility x2 523 | -9/Materials | Identified exit to Mines 523 | -9/Materials | Identified exit to Storage 1034 | -9/Materials | Core integrity fell below 50% 1050 | -9/Materials | Core integrity fell below 20% 1092 | -9/Materials | Destroyed by G-34 Mercenary with Small Laser Last Messages --------------- Testing... Terminal linked with 3 systems. Please expand to 1 more system! Feedback: System corruption (+1%). 01033_ ALERT: Suspicious activity at Terminal M008. Dispatching Investigation squad. 01033_ Dropped Sml. Storage Unit. 01036_ Imp. Hover Unit destroyed. 01039_ Critical hit (Burn: +37). 01041_ Dropped Ion Engine. 01042_ R-06 Scavenger collects Ion Engine. 01046_ R-06 Scavenger destroyed. 01046_ U-05 Engineer destroyed. 01046_ Acquired 25 matter. 01057_ Triggered Alarm Trap. 01057_ An alarm sounds. 01057_ ALERT: Alarm triggered, dispatching investigation squad. 01064_ Broken Imp. Hover Unit destroyed. 01065_ Hacking Suite destroyed. Map ----- +----------------------------------------------------+ | # #???????????????????????? | | # #???????????????????????? | | # #???????????????????????? | | # #???????????????????????? | | # #??????"????????????????? | | # #?????"""""?????????????? | | # #?????"""""?????????????? | | # #????? ???#####?????? | | # #????""" ???? ??????? | | # #????"R ???? ??????? | | # #?????"" ???? > ??????? | | # #?????? ???? ??????? | | # ##???###/###??# ######## | | ##### #??# # # | | !!! #??# # """ # | | T= * #??# # """ # | | !| !#### # """ # | | #####*%!! # # | | ####???##* ##### # """ # | | ????????# #???# /g """ # | | ????????# #???# # """ # | | ????????# #???# # Ygg# | | ????????# #???# # """g# | | ???????# #??# # g""" # | | ??????# #?# # """ # | | ??????# #?# # @# | | ??????# > #?# ######## | | ??????# #?# #??????? | | ??????#"" ""#?# #??????? | | ??????##"!!!"##?# #??????? | | ???????##"""##??# #??????? | | ????????#####???# ####???? | | ????????????????# #???? | | ????????????????# #???? | | ????????????????###+####??? | | ????????????????# #??? | | ????????????????#""" #??? | | ????????????????#"Y #??? | | ????????????????#""" #??? | | ????????????????# ][#??? | | ???????????????? * ] ][#??? | | ????????????????########??? | | ??????????????????????????? | | | | | | | | | | | | | | | +----------------------------------------------------+ Best States ------------- Heat Dissipation 28 Energy Generation 10 Energy Capacity 375 Matter Stores 244 Matter Capacity 300 Sight Range 16 Robot Scan Range 14 Terrain Scan Range 16 Terrain Scan Density 10 ECM Strength 1 Evasion (%) 53 Offensive Hacking 10 Authchip Count 2 Item Schematics ----------------- Rocket Launcher | -9/Materials | Scanalyzed Ion Engine | -9/Materials | Scanalyzed ECM Suite | -9/Materials | Scanalyzed Imp. Hover Unit | -9/Materials | Scanalyzed Robot Schematics ------------------ None Fabricated ------------ Nothing Repaired ---------- Nothing Alien Tech Used ----------------- None Achievements -------------- None Challenges ------------ None Game ------ Seed ShrapnelSpectralRigger Manual? 0 Play Time 00:23:17 Cumulative 31.2 hours Start 2025.09.28 @ 17:56:38 End 2025.09.28 @ 18:24:13 Sessions 1 Manual Loads 0 Difficulty Rogue Special Mode None Game No. 20 Rogue 20 Adventurer 0 Explorer 0 Win Type - Total 0 Types 0/0/0/0/0/0/0/0/0/0 Lore% 3 Gallery% 27 Achievement% 23 Wizard Run 0 Options --------- Layout 1 ASCII 0 Keyboard 1 Movement Vi Keybinds 0 Fullscreen 1 Font 24/Smallcaps Map View 50x35 Zoom Use 0% Tactical HUD 1 Map Filters NONE Filters NONE Steam 1 RUN: 3d9bd82e-f2a8-4beb-8835-03e2576386a0